bitfinex/quotes_ETHUSD_20250622
["timestamp","ask_amount","ask_price","bid_price","bid_amount"]
[1750552967292,22.99244804,2300.2,2300.1,0.36293318]
[1750552967458,22.99244804,2300.2,2300.1,4.34763705]
[1750552967459,18.645,2300.2,2300.1,4.34763705]
[1750552967659,4.34606425,2301.0,2299.3,4.34912164]
[1750552967660,2.805,2300.4,2300.3,4.34725905]
[1750552967860,12.805,2300.6,2300.5,4.34688111]
[1750552968056,2.805,2300.6,2300.5,4.34688111]
[1750552968758,2.805,2301.0,2300.8,4.34620599]
[1750552968957,10.0,2300.9,2300.8,4.34620599]
[1750552969159,14.3467936,2300.6,2299.9,4.34801513]
[1750552969391,50.0,2300.3,2299.7,4.34839326]
[1750552969606,11.43448099,2300.2,2300.0,4.34772259]
[1750552969896,11.43448099,2300.2,2300.0,4.34774389]
[1750552970462,0.7858,2300.8,2300.0,4.34774389]
[1750552970463,0.7858,2301.6,2300.1,0.8123]
[1750552970659,0.22173821,2303.1,2301.7,4.34461484]
[1750552970660,1.00739376,2301.8,2301.7,4.34461484]
[1750552970935,2.805,2302.5,2302.3,4.34336855]
[1750552971108,2.805,2302.5,2301.9,4.34420021]
[1750552971109,2.805,2302.5,2302.1,4.34383589]
[1750552971272,30.0,2302.3,2301.2,0.8123]
[1750552971476,3.94228,2302.2,2302.0,4.34392756]
[1750552971708,3.94228,2302.2,2302.1,4.34385995]
[1750552971709,2.805,2302.2,2302.1,4.34385995]
[1750552973038,15.12866024,2302.7,2301.6,0.8123]
[1750552973194,10.0,2301.9,2301.4,4.34504201]
[1750552973511,0.7858,2301.7,2301.5,4.34497415]
[1750552973719,0.7858,2301.7,2301.3,4.34522479]
[1750552973878,13.242,2302.0,2301.8,4.3444261]
[1750552974084,2.805,2302.0,2301.9,4.34423736]
[1750552974828,0.7858,2302.8,2302.2,4.34366249]
[1750552974829,8.629,2302.3,2302.2,4.34366249]
[1750552974983,11.434,2302.3,2302.2,4.34366249]
[1750552975512,2.805,2302.3,2302.2,4.34363217]
[1750552975711,0.7858,2302.8,2302.7,4.3427281]
[1750552975913,12.805,2302.8,2302.7,4.3427281]
[1750552976075,2.805,2302.8,2302.7,4.3427281]
[1750552978225,20.437,2303.0,2302.9,4.34235094]
[1750552978391,0.7701,2304.0,2303.5,4.3410365]
[1750552978593,0.7701,2304.0,2302.8,4.34251723]
[1750552978594,2.804,2303.9,2303.0,4.34216239]
[1750552978898,2.804,2303.8,2302.9,1.21009345]
[1750552979094,8.618,2303.7,2303.6,4.34103142]
[1750552980186,15.11138347,2303.5,2301.8,9.29824666]
[1750552980388,30.0,2303.2,2302.2,0.7724]
[1750552980589,30.0,2302.8,2302.0,4.34400491]
[1750552980940,10.0,2302.6,2302.3,4.34330742]
[1750552981240,10.0,2302.0,2301.4,4.344998]
[1750552981400,10.0,2301.8,2300.9,0.7724]
[1750552981602,18.614,2301.7,2301.6,4.34480361]
[1750552982165,8.612,2302.3,2302.2,4.34367127]
[1750552982288,2.804,2302.9,2302.6,4.3429167]
[1750552982613,2.804,2302.9,2302.8,4.34253951]
[1750552982795,30.0,2302.8,2302.6,4.34278125]
[1750552983127,11.6944,2302.9,2302.8,4.34253951]
[1750552983304,21.6944,2302.9,2302.8,4.34253951]
[1750552983486,0.42787907,2304.2,2303.7,4.34084299]
[1750552983687,3.5692,2304.5,2304.4,4.33952438]
[1750552983890,2.804,2304.5,2303.6,13.63927808]
[1750552984112,2.804,2304.5,2303.7,0.04339913]
[1750552984311,30.0,2304.4,2303.5,1.2535802]
[1750552984525,40.0,2304.2,2304.1,4.3400894]
[1750552984718,11.411,2304.5,2304.4,4.33952438]
[1750552984928,2.803,2304.6,2303.8,0.04339855]
[1750552985114,0.7652,2304.9,2304.7,4.33882839]
[1750552985425,11.409,2304.8,2304.7,4.33882839]
[1750552985810,21.84,2305.0,2304.2,5.1695123]
[1750552986026,24.024,2305.0,2304.2,5.1695123]
[1750552986226,24.024,2305.0,2304.4,4.33952438]
[1750552986541,21.839,2305.0,2304.9,4.33858301]
[1750552986684,21.839,2305.0,2304.1,4.3400894]
[1750552986886,21.839,2305.0,2304.8,4.33860982]
[1750552986887,13.237,2305.0,2304.8,4.33860982]
[1750552987114,18.601,2304.9,2304.8,4.33860982]
[1750552987331,30.0,2305.6,2305.5,4.33743113]
[1750552987543,30.0,2305.7,2304.7,0.8297]
[1750552987695,8.597,2305.6,2305.3,4.33781932]
[1750552987901,8.597,2305.6,2305.2,4.33801839]
[1750552988119,8.597,2305.6,2305.3,4.33778852]
[1750552988291,3.0276887,2305.8,2305.6,4.33719933]
[1750552988494,0.22635162,2307.2,2305.7,5.64987767]
[1750552988731,0.22635162,2307.2,2307.1,4.33444584]
[1750552989034,0.22635162,2307.2,2307.1,0.0433401]
[1750552989243,30.0,2307.1,2306.8,0.7628]
[1750552989385,30.0,2307.1,2306.4,4.33560695]
[1750552989386,30.0,2307.0,2306.4,5.09851276]
[1750552989591,3.8595,2307.0,2306.5,4.33540574]
[1750552989803,8.595,2307.1,2306.6,4.33524414]
[1750552990003,8.595,2307.1,2306.3,0.47012929]
[1750552990004,2.802,2307.0,2306.3,0.47012929]
[1750552990340,30.0,2306.9,2305.9,0.7628]
[1750552990545,30.0,2306.8,2306.3,4.33590771]
[1750552990744,30.0,2306.8,2305.9,0.7628]
[1750552990745,8.593,2306.8,2306.2,4.3360633]
[1750552990943,10.0,2306.9,2305.9,0.7628]
[1750552991243,11.39,2306.8,2305.9,0.7628]
[1750552991536,11.39,2306.8,2306.4,4.3356391]
[1750552991906,10.428,2307.6,2307.5,4.33369447]
[1750552992109,10.428,2307.6,2306.6,0.55]
[1750552992110,10.428,2307.6,2307.2,4.33423259]
[1750552992338,11.7509,2307.6,2307.2,4.33424865]
[1750552992535,11.7509,2307.6,2306.8,0.04334057]
[1750552992746,2.801,2307.5,2306.7,4.33505322]
[1750552992965,10.428,2307.6,2306.8,0.04334146]
[1750552993163,10.428,2307.6,2306.5,0.55]
[1750552993164,10.428,2307.6,2307.5,4.33369447]
[1750552993373,2.801,2307.9,2307.4,0.7675]
[1750552993687,0.2256887,2308.1,2307.5,0.0433317]
[1750552993835,2.8,2308.0,2307.4,5.10131146]
[1750552994034,2.8,2308.0,2307.4,0.7675]
[1750552994472,2.8,2308.0,2307.9,4.33294336]
[1750552995180,2.8,2308.0,2307.8,4.33311804]
[1750552995181,0.2256887,2308.1,2308.0,4.33275563]
[1750552995478,2.764,2308.0,2307.6,4.33348394]
[1750552995658,8.579,2307.9,2307.4,0.7675]
[1750552995986,8.579,2307.9,2307.7,4.33329108]
[1750552996446,8.579,2307.9,2307.1,0.7675]
[1750552996651,8.579,2307.9,2307.2,0.04333726]
[1750552996867,8.579,2307.9,2307.5,4.33367799]
[1750552997068,9.82392576,2307.9,2307.4,4.33376816]
[1750552997296,9.82392576,2307.9,2307.5,4.33367606]
[1750552997498,4.3331398,2307.8,2307.2,4.33412943]
[1750552997711,4.3331398,2307.8,2306.8,4.33485483]
[1750552997712,30.0,2307.6,2306.8,4.77705215]
[1750552997984,30.0,2307.6,2307.0,4.33453238]
[1750552997985,30.0,2307.4,2307.0,4.33453238]
[1750552998304,30.0,2306.9,2306.5,4.33556142]
[1750552998605,8.573,2306.8,2306.4,4.33571263]
[1750552998794,30.0,2306.7,2306.2,4.33603144]
[1750552998995,2.763,2306.6,2306.2,4.33601555]
[1750552999194,18.571,2306.5,2305.4,0.7675]
[1750552999373,10.0,2306.5,2305.7,0.04336318]
[1750552999577,8.571,2306.4,2305.8,4.33688958]
[1750552999772,8.571,2306.4,2306.2,4.33607376]
[1750553000105,8.571,2306.4,2306.1,4.33624267]
[1750553000304,4.33455003,2307.1,2306.5,4.33550166]
[1750553000504,10.0,2306.5,2306.2,4.33596497]
[1750553000802,8.568,2306.4,2306.1,4.33631501]
[1750553001023,8.568,2306.4,2305.7,4.3803431]
[1750553001181,8.568,2306.4,2306.1,4.33615466]
[1750553001502,8.568,2306.4,2306.2,4.3360136]
[1750553001706,8.568,2306.4,2305.8,4.33684036]
[1750553001902,8.568,2306.4,2306.3,4.33594935]
[1750553002203,2.763,2306.5,2306.4,4.33576135]
[1750553002879,10.0,2306.8,2306.5,4.33547107]
[1750553003208,11.327,2306.7,2306.5,4.33547107]
[1750553003610,2.763,2306.7,2306.0,0.8005]
[1750553003809,52.89843991,2306.6,2305.8,0.43368404]
[1750553004109,0.771,2306.3,2305.4,0.42934911]
[1750553004326,0.771,2306.3,2305.6,4.33712069]
[1750553004327,12.8991642,2306.2,2305.6,4.33712069]
[1750553004488,10.36360596,2306.2,2305.8,4.33671509]
[1750553004686,10.36360596,2306.2,2305.2,0.8005]
[1750553004909,30.0,2306.0,2305.5,4.33733581]
[1750553005107,11.324,2305.9,2305.5,4.33733581]
[1750553005424,11.324,2305.9,2305.6,4.33722582]
[1750553005838,11.324,2305.9,2304.9,0.8005]
[1750553006020,15.66080407,2305.9,2305.3,4.33772272]
[1750553006230,30.0,2305.8,2305.2,4.33799327]
[1750553006394,0.771,2305.6,2305.5,4.33745391]
[1750553006595,0.771,2305.6,2305.4,4.33757272]
[1750553006790,10.416,2305.9,2305.6,4.33726578]
[1750553007032,11.322,2305.8,2305.7,4.33707767]
[1750553007202,11.322,2305.8,2305.6,4.33717803]
[1750553007409,11.322,2305.8,2305.7,4.33707767]
[1750553007630,11.322,2305.8,2305.6,4.33719593]
[1750553008016,11.322,2305.8,2305.5,4.33738623]
[1750553008017,11.322,2305.8,2305.7,4.33707767]
[1750553008226,11.322,2305.8,2305.5,4.33738623]
[1750553008500,11.322,2305.8,2305.4,4.33764131]
[1750553008701,11.32,2305.7,2304.9,1.22879367]
[1750553008935,0.55,2305.5,2304.6,0.7607]
[1750553009144,30.0,2305.3,2304.3,4.33970144]
[1750553009402,4.33812461,2305.2,2304.6,4.33896368]
[1750553009633,4.33812461,2305.2,2304.2,5.10056168]
[1750553009634,8.555,2305.1,2304.4,4.33934969]
[1750553009799,30.0,2304.9,2304.1,0.43636568]
[1750553010007,0.804,2304.7,2304.2,4.3397943]
[1750553010204,0.804,2304.7,2304.2,4.33979402]
[1750553010435,0.804,2304.7,2304.6,4.33914779]
[1750553010742,11.317,2304.7,2304.2,4.77372583]
[1750553010943,11.317,2304.7,2304.6,4.33899837]
[1750553011646,10.804,2305.2,2304.6,4.33899837]
[1750553011647,11.316,2304.8,2304.7,4.33895951]
[1750553011815,11.318,2304.8,2304.7,4.33895951]
[1750553012539,10.804,2305.2,2304.9,4.33843199]
[1750553012753,10.0,2305.0,2304.9,4.33858301]
[1750553012952,0.804,2305.2,2304.9,4.33858301]
[1750553013130,10.0,2305.0,2304.9,4.33858301]
[1750553013460,10.0,2305.0,2304.7,4.33892853]
[1750553013619,8.551,2304.9,2304.8,4.33877125]
[1750553014010,8.99648078,2304.9,2304.1,1.22214333]
[1750553014223,8.551,2304.9,2304.1,0.7857]
[1750553014447,0.804,2305.2,2304.2,4.38323528]
[1750553014626,10.0,2305.0,2304.1,1.22609324]
[1750553014814,10.0,2305.0,2304.7,4.33885787]
[1750553015316,10.0,2305.0,2304.9,4.33858301]
[1750553015524,10.0,2305.0,2304.1,1.22609324]
[1750553015732,11.312,2304.9,2304.5,4.33916466]
[1750553016006,11.312,2304.9,2303.8,4.34065133]
[1750553016007,10.0,2304.8,2303.7,0.7857]
[1750553016257,0.7773,2304.7,2304.6,4.33914779]
[1750553016422,12.764,2305.1,2305.0,4.33839479]
[1750553017118,3.70714506,2306.0,2305.4,4.33762151]
[1750553017324,8.545,2305.8,2305.6,4.33716412]
[1750553017640,8.545,2305.8,2305.0,0.7857]
[1750553017641,18.545,2305.8,2305.0,0.7857]
[1750553017946,10.0,2305.8,2305.6,4.33723312]
[1750553018130,12.764,2305.8,2305.7,4.33707767]
[1750553018336,2.764,2305.8,2305.7,4.33707767]
[1750553018537,12.764,2305.8,2305.6,4.33718069]
[1750553018736,0.94314506,2306.0,2305.9,4.3367015]
[1750553019454,0.94314506,2306.0,2305.1,0.7781]
[1750553019455,10.0,2305.9,2305.1,0.7781]
[1750553019746,30.0,2305.8,2305.1,0.7781]
[1750553019952,0.94314506,2306.0,2305.8,4.33684516]
[1750553020123,10.0,2305.8,2305.7,4.33707221]
[1750553020323,11.305,2305.9,2305.8,4.33688958]
[1750553020850,12.24714506,2306.0,2305.9,4.3367015]
[1750553021032,0.94314506,2306.0,2305.9,4.3367015]
[1750553021235,2.764,2306.2,2306.1,4.33632539]
[1750553021236,12.764,2306.2,2306.1,4.33632539]
[1750553021440,12.764,2306.2,2306.0,4.33649121]
[1750553021644,12.764,2306.2,2306.1,4.33632539]
[1750553022716,10.0,2306.0,2305.1,0.7781]
[1750553022918,10.0,2305.8,2305.6,4.33726552]
[1750553023122,18.536,2305.7,2305.6,4.33726552]
[1750553023316,18.536,2305.7,2305.4,4.33748287]
[1750553023595,18.536,2305.7,2305.5,4.33735212]
[1750553023763,18.536,2305.7,2305.6,4.33726578]
[1750553024322,18.536,2305.7,2305.5,4.33728307]
[1750553024634,0.799,2306.1,2304.8,1.22012797]
[1750553024824,4.33698532,2305.8,2304.8,5.5588046]
[1750553025019,30.0,2305.5,2305.0,4.33827286]
[1750553025219,10.0,2305.3,2305.2,4.33801839]
[1750553025573,10.0,2305.3,2305.0,4.338285]
[1750553025776,8.532,2305.2,2305.0,4.338285]
[1750553025924,18.532,2305.2,2305.1,4.33820658]
[1750553026365,18.532,2305.2,2304.5,0.7871]
[1750553026857,10.0,2305.1,2304.1,0.7871]
[1750553027057,10.0,2304.9,2304.2,4.33990105]
[1750553027383,10.0,2304.9,2303.8,4.34063542]
[1750553027384,10.0,2304.5,2303.9,4.34046616]
[1750553027562,11.263,2304.4,2304.1,4.33999038]
[1750553027767,11.263,2304.4,2304.0,4.34018706]
[1750553028069,11.263,2304.4,2304.1,4.34006081]
[1750553028286,10.0,2304.3,2304.2,4.33974677]
[1750553028576,11.263,2304.4,2304.3,4.33971271]
[1750553028577,2.733,2304.4,2304.3,4.33971271]
[1750553028929,10.0,2304.3,2302.8,11.74240179]
[1750553029159,8.527,2304.2,2303.8,4.34047551]
[1750553029357,8.527,2304.2,2303.5,4.38456748]
[1750553029540,18.527,2304.2,2304.0,4.34018642]
[1750553029747,8.527,2304.2,2303.6,4.34103142]
[1750553029947,8.527,2304.2,2303.9,4.34043239]
[1750553030357,40.0,2304.1,2303.5,4.34115315]
[1750553030560,11.259,2304.0,2303.9,4.34033661]
[1750553030863,11.259,2304.0,2303.4,0.04340848]
[1750553030864,10.0,2303.9,2303.4,4.34123588]
[1750553031059,8.525,2303.8,2303.5,4.34117552]
[1750553031268,10.0,2303.7,2303.0,0.36247616]
[1750553031435,8.524,2303.6,2303.5,4.34121988]
[1750553031637,10.0,2303.8,2303.7,4.34084299]
[1750553031829,10.0,2304.0,2303.2,9.00178534]
[1750553032159,10.0,2304.0,2303.9,4.34046616]
[1750553032160,12.734,2304.0,2303.9,4.34046616]
[1750553032684,4.33847507,2305.0,2303.8,4.34062895]
[1750553032685,1.95283555,2304.8,2304.2,4.33974334]
[1750553032891,3.90413555,2304.8,2304.7,4.33895951]
[1750553033076,3.90413555,2304.8,2304.1,4.33996149]
[1750553033232,10.7827,2304.5,2303.3,0.8262]
[1750553033438,10.0,2304.0,2303.7,4.3407163]
[1750553033637,11.256,2303.9,2303.8,4.34065457]
[1750553033934,30.0,2304.7,2304.0,4.34027777]
[1750553034135,12.734,2304.6,2304.3,4.33959896]
[1750553034335,12.4129491,2304.8,2304.5,4.33933608]
[1750553034535,11.255,2304.7,2304.5,4.33933608]
[1750553034766,11.255,2304.7,2303.9,0.8262]
[1750553034970,11.255,2304.7,2304.2,4.33980449]
[1750553035173,7.139846,2304.6,2304.0,4.34027777]
[1750553035371,10.0,2304.4,2304.2,4.33987662]
[1750553035568,8.52,2304.3,2304.2,4.33987662]
[1750553036275,8.52,2304.3,2304.1,4.33999396]
[1750553036440,8.52,2304.3,2304.2,4.33990105]
[1750553037334,1.17013555,2304.8,2304.2,1.69419694]
[1750553037534,1.17013555,2304.8,2303.8,4.34061469]
[1750553037535,8.517,2304.7,2303.8,4.34049514]
[1750553037863,15.50895264,2304.8,2303.8,4.34049514]
[1750553037864,1.17013555,2304.8,2304.7,4.33895951]
[1750553038045,1.17013555,2304.8,2304.5,4.33933608]
[1750553038046,8.516,2304.8,2304.3,0.7987]
[1750553038246,2.734,2304.7,2304.5,4.33924216]
[1750553038478,2.734,2304.7,2304.5,4.33930642]
[1750553038773,2.734,2304.7,2304.0,0.7987]
[1750553038774,2.734,2304.7,2304.3,4.33971271]
[1750553039069,2.734,2304.7,2304.0,5.13892032]
[1750553039070,2.734,2304.7,2304.1,4.340031]
[1750553039235,12.734,2304.7,2304.3,4.33954531]
[1750553039438,10.8042,2304.6,2304.3,4.33954531]
[1750553039638,8.514,2304.5,2304.3,4.33954531]
[1750553039960,10.0,2304.4,2303.7,5.13952605]
[1750553040171,10.0,2304.2,2304.1,4.33990661]
[1750553040369,19.512,2304.2,2303.8,4.34053724]
[1750553040555,18.512,2304.2,2304.1,4.3400894]
[1750553040871,18.512,2304.2,2304.0,4.34026948]
[1750553041079,18.512,2304.2,2303.6,4.34100628]
[1750553041279,30.0,2303.9,2303.0,0.7987]
[1750553041462,25.32542,2303.8,2303.1,4.34197386]
[1750553041669,25.32542,2303.8,2303.0,0.7987]
[1750553041670,10.0,2303.8,2303.7,4.34084299]
[1750553041861,11.245,2303.8,2303.0,1.22397781]
[1750553042179,11.245,2303.8,2303.6,4.34090439]
[1750553042420,10.0,2303.7,2303.3,4.34147938]
[1750553042677,10.0,2303.5,2303.1,4.34180963]
[1750553042975,10.0,2303.0,2302.2,0.821]
[1750553043176,10.0,2303.0,2301.1,11.78045912]
[1750553043177,30.0,2302.7,2302.1,4.34379847]
[1750553043380,30.0,2302.5,2302.2,4.3435294]
[1750553043565,10.0,2302.6,2302.5,4.34310532]
[1750553043766,21.243,2302.6,2302.4,4.34325971]
[1750553044284,21.243,2302.6,2302.0,4.34404865]
[1750553044285,30.0,2302.5,2302.0,4.34404865]
[1750553044444,30.0,2302.5,2301.5,0.821]
[1750553044445,18.507,2302.4,2301.5,0.821]
[1750553044778,10.0,2302.3,2301.5,0.821]
[1750553044963,10.0,2302.0,2301.7,4.34448488]
[1750553045167,10.0,2301.8,2301.5,4.34493212]
[1750553045367,0.7626,2302.4,2302.0,4.34404504]
[1750553045668,2.735,2302.3,2301.8,0.821]
[1750553045978,2.735,2302.3,2302.2,4.34367127]
[1750553046198,2.735,2302.3,2301.3,10.0]
[1750553046199,50.0,2302.2,2301.5,5.16594308]
[1750553046497,3.8592,2302.3,2301.0,0.821]
[1750553046498,3.4976,2302.1,2301.0,0.821]
[1750553046799,18.506,2302.0,2301.2,4.34555883]
[1750553046993,18.506,2302.0,2301.3,4.34537]
[1750553047196,30.0,2301.9,2301.1,4.34565754]
[1750553047383,30.0,2301.9,2301.5,4.34484789]
[1750553047587,30.0,2301.7,2301.1,4.34574768]
[1750553047788,30.0,2301.7,2300.7,0.43276539]
[1750553047789,8.507,2301.6,2300.7,0.821]
[1750553048104,11.1916,2301.5,2300.3,0.821]
[1750553048263,11.1916,2301.5,2300.4,0.36288584]
[1750553048264,30.0,2301.1,2300.4,0.36288584]
[1750553048464,8.505,2301.0,2300.5,4.34688111]
[1750553048667,10.0,2300.9,2300.4,0.36288584]
[1750553049000,10.0,2300.9,2300.5,4.34671574]
[1750553049211,35.10895749,2300.8,2300.2,4.34730493]
[1750553049372,10.0,2300.6,2299.6,0.821]
[1750553049581,40.0,2300.4,2299.3,4.34913924]
[1750553049777,4.34710487,2300.4,2299.8,4.34812351]
[1750553050004,10.0,2300.1,2299.7,4.34824961]
[1750553050174,10.0,2299.9,2299.2,4.3493389]
[1750553050380,2.736,2299.8,2299.7,4.34837644]
[1750553050676,2.736,2299.8,2299.7,4.34839326]
[1750553051084,2.736,2299.8,2299.6,4.34847772]
[1750553051398,8.502,2299.7,2299.5,4.34872873]
[1750553051704,10.0,2299.6,2299.1,4.34941195]
[1750553051874,10.0,2299.6,2298.8,0.2256887]
[1750553052079,0.7901,2299.4,2299.0,4.34960726]
[1750553052414,0.7901,2299.4,2298.8,4.5756403]
[1750553052415,0.7901,2299.4,2299.3,4.34914974]
[1750553052565,0.7749,2299.8,2299.5,4.34874218]
[1750553052766,10.0,2299.6,2299.4,4.34887749]
[1750553053106,2.737,2299.7,2299.6,4.34858236]
[1750553053400,2.737,2300.4,2299.9,4.34801513]
[1750553054011,0.7749,2300.8,2299.9,4.34801513]
[1750553054304,10.94605936,2302.5,2299.9,14.39148819]
[1750553054305,2.738,2300.6,2299.9,14.39148819]
[1750553054505,2.738,2300.6,2299.9,16.8515528]
[1750553055066,2.738,2300.6,2299.9,17.2815107]
[1750553055261,10.0,2301.1,2299.9,17.2815107]
[1750553055510,2.708,2300.8,2300.7,4.34650323]
[1750553055814,10.437,2301.2,2301.1,4.34574768]
[1750553055981,21.646,2301.2,2301.1,4.34574768]
[1750553056366,31.646,2301.2,2301.1,4.34574768]
[1750553056806,10.0,2301.1,2300.2,4.34744804]
[1750553056992,10.0,2301.1,2300.3,4.34725905]
[1750553057305,10.0,2301.1,2300.7,4.34639466]
[1750553057306,30.0,2301.0,2300.7,4.34639466]
[1750553057602,8.5,2300.9,2300.8,4.34627]
[1750553059864,8.5,2300.9,2300.7,4.34649032]
[1750553059865,8.5,2300.9,2300.7,4.34639155]
[1750553060171,30.0,2300.7,2300.4,4.34697262]
[1750553060506,10.0,2300.5,2300.4,4.34707007]
[1750553060708,30.0,2300.4,2299.7,0.7676]
[1750553060878,40.0,2300.2,2298.8,0.2256887]
[1750553061083,10.0,2299.9,2299.6,4.3485747]
[1750553061285,40.0,2299.7,2299.6,4.3485747]
[1750553061485,10.0,2299.7,2299.4,4.34885263]
[1750553061692,10.0,2299.7,2299.6,4.34858236]
[1750553062100,10.0,2299.7,2299.5,4.34869821]
[1750553062299,10.0,2299.7,2299.5,4.34877147]
[1750553062517,5.18007829,2300.3,2299.5,4.34877147]
[1750553062518,10.438,2300.3,2300.0,4.34780025]
[1750553062825,0.8328,2300.1,2299.5,4.34875151]
[1750553063019,0.8328,2300.1,2299.6,0.04348247]
[1750553063202,0.8328,2300.1,2299.9,4.34789559]
[1750553063203,18.491,2300.0,2299.9,4.34789559]
[1750553063580,10.0,2300.0,2299.9,4.34789559]
[1750553064687,10.438,2300.3,2299.4,0.43256808]
[1750553064906,12.709,2300.2,2300.1,4.34763705]
[1750553066519,10.0,2300.0,2299.6,4.34842158]
[1750553066721,4.34913811,2299.4,2298.8,5.34336178]
[1750553066894,12.0298,2299.3,2299.1,4.34940572]
[1750553067091,18.488,2299.2,2299.1,4.34940572]
[1750553067520,18.488,2299.2,2299.0,4.34963954]
[1750553067823,10.0,2299.1,2298.9,4.34989371]
[1750553068008,18.487,2299.0,2298.9,4.34989371]
[1750553068208,18.486,2299.0,2298.9,4.34989371]
[1750553068585,8.486,2299.0,2298.9,4.34989371]
[1750553068894,0.7609,2299.6,2299.0,4.34971726]
[1750553069092,2.71,2299.6,2299.5,4.34877147]
[1750553072556,10.438,2300.3,2299.6,4.34858236]
[1750553072732,21.191,2300.2,2300.0,4.34774306]
[1750553072935,2.71,2300.2,2300.1,4.34763705]
[1750553073124,10.438,2300.3,2300.2,4.34744804]
[1750553078126,12.71,2300.6,2300.5,4.34688111]
[1750553078290,12.71,2300.6,2300.3,4.34725507]
[1750553078495,12.71,2300.6,2300.2,4.34742855]
[1750553078695,8.47,2300.5,2300.4,4.34706042]
[1750553080809,8.47,2300.5,2299.9,4.34801513]
[1750553081315,8.47,2300.5,2300.4,4.34707007]
[1750553082332,8.47,2300.5,2300.3,4.3471672]
[1750553082497,8.47,2300.5,2300.4,4.34707007]
[1750553083643,8.47,2300.5,2300.3,4.34716727]
[1750553083997,8.47,2300.5,2300.4,4.34707007]
[1750553084199,12.71,2300.6,2300.4,4.34707007]
[1750553084442,8.46,2300.5,2300.4,4.34707007]
[1750553084622,8.46,2300.5,2300.3,4.34716342]
[1750553085133,8.46,2300.5,2300.4,4.34707007]
[1750553086811,10.0,2300.4,2299.8,0.8176]
[1750553087011,40.0,2300.2,2299.5,5.11895532]
[1750553087211,40.0,2300.2,2299.6,4.34848407]
[1750553087212,30.0,2300.0,2299.6,4.34848407]
[1750553087534,14.34754863,2300.2,2299.7,4.34829735]
[1750553087535,11.131,2299.9,2299.7,4.34829735]
[1750553087739,11.131,2299.9,2299.6,4.34851056]
[1750553088037,11.131,2299.9,2299.7,4.3483609]
[1750553089445,5.17965155,2300.4,2299.7,4.3483609]
[1750553089645,10.0,2300.1,2299.9,4.34791345]
[1750553089806,8.451,2300.0,2299.9,4.34791345]
[1750553090140,8.451,2300.0,2299.8,4.34811641]
[1750553090327,8.451,2300.0,2299.9,4.34801513]
[1750553090734,10.0,2300.2,2300.0,4.34782608]
[1750553090913,2.677,2300.3,2300.2,4.34744804]
[1750553091114,12.677,2300.3,2300.2,4.34744804]
[1750553092733,2.677,2300.3,2300.2,4.34744804]
[1750553095747,2.677,2300.3,2300.2,5.26042371]
[1750553095917,2.677,2300.9,2300.8,4.34617801]
[1750553096254,2.677,2300.9,2300.6,4.34654652]
[1750553096415,11.115,2300.9,2300.6,4.34654652]
[1750553096850,11.115,2300.9,2300.4,4.34697285]
[1750553097010,1.1115,2300.8,2300.2,0.7892]
[1750553097216,8.436,2300.7,2300.6,4.34669216]
[1750553097492,2.677,2300.9,2300.8,4.34631432]
[1750553097493,11.113,2300.9,2300.8,4.34631432]
[1750553098458,10.0,2301.2,2300.9,4.34606094]
[1750553098667,10.443,2301.3,2300.7,4.34646569]
[1750553098668,10.0,2301.0,2300.8,4.34622917]
[1750553099549,10.0,2301.0,2300.7,4.3464152]
[1750553099728,8.433,2300.9,2300.6,4.34659995]
[1750553099930,8.433,2300.9,2300.5,4.34675724]
[1750553100249,0.8117,2300.8,2300.4,4.34698258]
[1750553100451,8.43,2300.7,2300.5,4.34686459]
[1750553101051,8.43,2300.7,2300.5,4.34671746]
[1750553101274,9.35417,2300.7,2300.4,4.34697648]
[1750553101972,9.35417,2300.7,2300.5,4.34687752]
[1750553102572,9.35417,2300.7,2300.5,4.34677807]
[1750553102864,8.43,2300.7,2300.5,4.34677807]
[1750553103041,8.43,2300.7,2300.6,4.34669216]
[1750553103264,8.43,2300.7,2300.1,4.34761782]
[1750553103265,11.104,2301.1,2300.8,4.34619535]
[1750553103555,10.0,2300.9,2300.1,5.12771807]
[1750553103855,0.7798,2300.6,2299.8,10.7801]
[1750553104058,10.0,2300.9,2300.7,4.34638025]
[1750553104059,8.422,2300.9,2300.7,4.34638025]
[1750553104275,10.60988,2300.9,2300.4,4.34699503]
[1750553104472,10.60988,2300.9,2300.1,9.00746305]
[1750553104670,10.60988,2300.9,2300.5,4.34675017]
[1750553104850,10.60988,2300.9,2300.6,4.34662036]
[1750553105037,10.60988,2300.9,2300.7,4.34642733]
[1750553105236,10.60988,2300.9,2300.6,4.34659352]
[1750553106262,10.0,2300.7,2300.3,4.34709313]
[1750553106428,8.42,2300.6,2300.3,4.34709313]
[1750553106766,0.7798,2300.4,2299.7,4.66]
[1750553106929,10.0,2300.2,2299.8,4.3480967]
[1750553107130,10.0,2300.3,2299.4,4.34890503]
[1750553107325,10.0,2300.3,2299.7,4.34824026]
[1750553107662,10.0,2300.3,2299.3,0.7801]
[1750553107823,11.8728,2300.4,2298.9,0.89256614]
[1750553107824,10.0,2299.5,2299.1,4.34949462]
[1750553108161,11.092,2299.4,2298.9,4.34979043]
[1750553108473,10.0,2299.3,2299.0,4.34969599]
[1750553108639,8.414,2299.2,2299.0,4.34969599]
[1750553109058,0.8142,2299.7,2298.9,0.04349675]
[1750553109229,10.0,2299.5,2299.0,4.34971726]
[1750553109530,10.0,2299.5,2299.1,4.3494855]
[1750553109729,10.0,2299.5,2298.8,0.9909887]
[1750553109938,10.0,2299.5,2299.1,4.34936333]